{"text_format":"3","workbook":"xlsx","n_sheets":8,"sheets":["Указания","Регулярные","Редкие","Потенциальные","План сети за 1 кв.","План сетевого развития за 2 кв.","Сетевой план на 3 кв.","План сети за 4 кв."],"not_rendered":{"defined_names":7},"read":"whole","date_system":"1900"}

{"sheet":"Указания","index":0,"n_rows":17,"n_cols":5,"rows_kept":17,"merged":[[0,0,0,2],[1,1,1,6],[2,1,2,6],[3,1,3,6],[4,1,4,6],[5,1,5,6],[6,1,6,6],[7,1,7,6],[8,1,8,6],[9,1,9,6],[10,1,10,6],[11,1,11,6]]}
["Сенсорный базовый трекер",null,null,"Указания"]
[null,"1. Выберите, к какой категории относится контакт:"]
[null,"• Регулярные — люди, с которыми вы хотели бы поддерживать связь на регулярной основе"]
[null,"• Редкие — люди, с которыми вы хотели бы связываться несколько раз в год"]
[null,"• Потенциальные — люди или компании, которые вы бы хотели сохранить в файле, чтобы связаться с ними, когда придет время"]
[null,"2. Откройте соответствующую вкладку книги."]
[null,"3. Введите их данные (чтобы создать новую строку в ячейке, нажмите ALT+ВВОД в Windows или OPTION+RETURN на компьютере Mac)."]
[null,"Ознакомьтесь с новыми инструкциями по работе с мобильными приложениями Excel."]
[null,"4. В столбце \"Дата для дальнейшей связи\" удалите пример даты или формулы, введите, когда вы хотите связаться с ними, \nи нажмите клавишу ВВОД."]
[null,"5. Столбец \"Дата для дальнейшей связи\" будет отображаться красным, когда дата будет близко желтым, когда она приближается, и \nзеленый, когда у вас много времени."]
[null,"6. По мере приближения даты цвет изменится соответствующим образом."]
[null,"7. После того как вы свяжетесь с контактом, введите \"ДА\" в столбец \"Готово?\". Дата станет серой. "]
[null,"8. Если вы хотите связаться с контактом снова, замените \"ДА\" на \"НЕТ\" и введите новую Дату для дальнейшей связи."]
[null,null,"Красный","Желтый","Зеленый"]
[null,"Регулярные","Осталось 1–3 дн.","Осталось 4–7 дн.","Осталось 8–14+ дн."]
[null,"Редкие","Осталось 1–7 дн.","Осталось 8–45 дн.","Осталось 46–90+ дн."]
[null,"Потенциальные","Осталось 1–14 дн.","Осталось 15–60 дн.","Осталось 60–120+ дн."]

{"sheet":"Регулярные","index":1,"n_rows":7,"n_cols":8,"rows_kept":7,"merged":[[0,0,0,2]]}
["Сенсорный базовый трекер",null,null,"Регулярные"]
[]
["Имя","Компания","Контактные данные","Место встречи","Заметки","Дата для дальнейшей связи","Готово","Заметки из беседы"]
["Артем Фазанов","Adventure Works","Менеджер проекта\nartem@adventure-works.com\n(234) 555-0134\nadventure-works.com\nlinkedin.com/in/artem-fazanov","Выставка 2010","Спросите о дочери Светлане и о том, как продвигается ремонт. Не любит большие компании и острую пищу.",{"$f":"TODAY()+8","v":"2021-07-24"},"НЕТ"]
["Имя","Название компании","Должность\nАдрес электронной почты\nНомер телефона\nВеб-сайт\nСсылки на профили социальных сетей\n","Место","Сделайте заметки об этом человеке, которые вы хотите запомнить; где вы встретились, о чем говорили, о чем хотите сказать в следующий раз, когда будете говорить и т. д.",{"$f":"TODAY()-3","v":"2021-07-13"},"ДА"]
["Имя","Название компании","Должность\nАдрес электронной почты\nНомер телефона\nВеб-сайт\nСсылки на профили социальных сетей\n","Место","Сделайте заметки об этом человеке, которые вы хотите запомнить; где вы встретились, о чем говорили, о чем хотите сказать в следующий раз, когда будете говорить и т. д.",{"$f":"TODAY()+-3","v":"2021-07-13"},"НЕТ"]
["Имя","Название компании","Должность\nАдрес электронной почты\nНомер телефона\nВеб-сайт\nСсылки на профили социальных сетей\n","Место","Сделайте заметки об этом человеке, которые вы хотите запомнить; где вы встретились, о чем говорили, о чем хотите сказать в следующий раз, когда будете говорить и т. д.",{"$f":"TODAY()+6","v":"2021-07-22"},"НЕТ"]

{"sheet":"Редкие","index":2,"n_rows":7,"n_cols":8,"rows_kept":7,"merged":[[0,0,0,2]]}
["Сенсорный базовый трекер",null,null,"Редкие"]
[]
["Имя","Компания","Контактные данные","Место встречи","Заметки","Дата для дальнейшей связи","Готово","Заметки из беседы"]
["Артем Фазанов","Adventure Works","Менеджер по ресурсам\nartem@adventure-works.com\n(434) 555-0123\nwww.adventure-works.com\nlinkedin.com/in/artem-fazanov","Отпуск в Вермонте 2016","Удобно как для наема персонала, так и для маркетинговых вопросов.",{"$f":"TODAY()+90","v":"2021-10-14"},"НЕТ"]
["Имя","Название компании","Должность\nАдрес электронной почты\nНомер телефона\nВеб-сайт\nСсылки на профили социальных сетей\n","Место","Сделайте заметки об этом человеке, которые вы хотите запомнить; где вы встретились, о чем говорили, о чем хотите сказать в следующий раз, когда будете говорить и т. д.",{"$f":"TODAY()-3","v":"2021-07-13"},"ДА"]
["Имя","Название компании","Должность\nАдрес электронной почты\nНомер телефона\nВеб-сайт\nСсылки на профили социальных сетей\n","Место","Сделайте заметки об этом человеке, которые вы хотите запомнить; где вы встретились, о чем говорили, о чем хотите сказать в следующий раз, когда будете говорить и т. д.",{"$f":"TODAY()+-3","v":"2021-07-13"},"НЕТ"]
["Имя","Название компании","Должность\nАдрес электронной почты\nНомер телефона\nВеб-сайт\nСсылки на профили социальных сетей\n","Место","Сделайте заметки об этом человеке, которые вы хотите запомнить; где вы встретились, о чем говорили, о чем хотите сказать в следующий раз, когда будете говорить и т. д.",{"$f":"TODAY()+40","v":"2021-08-25"},"НЕТ"]

{"sheet":"Потенциальные","index":3,"n_rows":7,"n_cols":8,"rows_kept":7,"merged":[[0,0,0,2]]}
["Сенсорный базовый трекер",null,null,"Потенциальные"]
[]
["Имя","Компания","Контактные данные","Место встречи","Заметки","Дата для дальнейшей связи","Готово","Заметки из беседы"]
["Артем Фазанов","Фрилансер","Дизайнер\nproverka@example.com\n425-555-0123\nexample.com\nlinkedin.com/in/artem-fazanov","Выпускной сына 2016","Недавний выпускник — очень умелый. Может оказаться полезным для будущих клиентов.",{"$f":"TODAY()+89","v":"2021-10-13"},"НЕТ"]
["Имя","Название компании","Должность\nАдрес электронной почты\nНомер телефона\nВеб-сайт\nСсылки на профили социальных сетей\n","Место","Сделайте заметки об этом человеке, которые вы хотите запомнить; где вы встретились, о чем говорили, о чем хотите сказать в следующий раз, когда будете говорить и т. д.",{"$f":"TODAY()-3","v":"2021-07-13"},"ДА"]
["Имя","Название компании","Должность\nАдрес электронной почты\nНомер телефона\nВеб-сайт\nСсылки на профили социальных сетей\n","Место","Сделайте заметки об этом человеке, которые вы хотите запомнить; где вы встретились, о чем говорили, о чем хотите сказать в следующий раз, когда будете говорить и т. д.",{"$f":"TODAY()+-3","v":"2021-07-13"},"НЕТ"]
["Имя","Название компании","Должность\nАдрес электронной почты\nНомер телефона\nВеб-сайт\nСсылки на профили социальных сетей\n","Место","Сделайте заметки об этом человеке, которые вы хотите запомнить; где вы встретились, о чем говорили, о чем хотите сказать в следующий раз, когда будете говорить и т. д.",{"$f":"TODAY()+30","v":"2021-08-15"},"НЕТ"]

{"sheet":"План сети за 1 кв.","index":4,"n_rows":20,"n_cols":6,"rows_kept":20,"merged":[[0,0,0,3],[2,0,2,3],[4,0,4,3],[14,5,17,5],[18,0,18,3]]}
["План расширения сети"]
["Указания"]
["Напишите, как вы планируете расширить сеть контактов в этом квартале (т. е. сделать больше звонков, больше путешествовать и т. д.). Каждый раз, когда вы получаете новый контакт, изменяйте фактический номер контакта, чтобы отслеживать и видеть, насколько близко вы приближаетесь к своей цели."]
[]
["Как я планирую расширить сеть контактов в этом квартале"]
["1. Дополнительные телефонные звонки"]
["2. Дополнительные путешествия"]
[]
[]
[]
[]
[]
[]
["Ежеквартальная цель по контактам","Крайний срок","Фактическое количество контактов за квартал","Результаты"]
[20,{"$f":"TODAY()","v":"2021-07-16"},12,{"$f":"IF(tblGoals[[#This Row],[Ежеквартальная цель по контактам]]>0,tblGoals[[#This Row],[Фактическое количество контактов за квартал]]/tblGoals[[#This Row],[Ежеквартальная цель по контактам]],\"\")","v":{"v":0.6,"d":"60%"}},null,"0% – 25%\n26% – 50%\n51% – 75%\n76% – 100%\n\nИзменения цвета в зависимости от достигнутого процента"]
[{"$nulls":3},{"$f":"IF(tblGoals[[#This Row],[Ежеквартальная цель по контактам]]>0,tblGoals[[#This Row],[Фактическое количество контактов за квартал]]/tblGoals[[#This Row],[Ежеквартальная цель по контактам]],\"\")","v":""}]
[{"$nulls":3},{"$f":"IF(tblGoals[[#This Row],[Ежеквартальная цель по контактам]]>0,tblGoals[[#This Row],[Фактическое количество контактов за квартал]]/tblGoals[[#This Row],[Ежеквартальная цель по контактам]],\"\")","v":""}]
[]
["Отражение результатов и примечания для улучшения"]
["Близко. Попробовать позвонить в обеденное время."]

{"sheet":"План сетевого развития за 2 кв.","index":5,"n_rows":20,"n_cols":6,"rows_kept":20,"merged":[[0,0,0,3],[2,0,2,3],[4,0,4,3],[14,5,17,5],[18,0,18,3]]}
["План расширения сети"]
["Указания"]
["Напишите, как вы планируете расширить сеть контактов в этом квартале (т. е. сделать больше звонков, больше путешествовать и т. д.). Каждый раз, когда вы получаете новый контакт, изменяйте фактический номер контакта, чтобы отслеживать и видеть, насколько близко вы приближаетесь к своей цели."]
[]
["Как я планирую расширить сеть контактов в этом квартале"]
["1. Дополнительные телефонные звонки"]
["2. Дополнительные путешествия"]
[]
[]
[]
[]
[]
[]
["Ежеквартальная цель по контактам","Крайний срок","Фактическое количество контактов за квартал","Результаты"]
[20,{"$f":"TODAY()","v":"2021-07-16"},12,{"$f":"IF(tblGoals3[[#This Row],[Ежеквартальная цель по контактам]]>0,tblGoals3[[#This Row],[Фактическое количество контактов за квартал]]/tblGoals3[[#This Row],[Ежеквартальная цель по контактам]],\"\")","v":{"v":0.6,"d":"60%"}},null,"0% – 25%\n26% – 50%\n51% – 75%\n76% – 100%\n\nИзменения цвета в зависимости от достигнутого процента"]
[{"$nulls":3},{"$f":"IF(tblGoals3[[#This Row],[Ежеквартальная цель по контактам]]>0,tblGoals3[[#This Row],[Фактическое количество контактов за квартал]]/tblGoals3[[#This Row],[Ежеквартальная цель по контактам]],\"\")","v":""}]
[{"$nulls":3},{"$f":"IF(tblGoals3[[#This Row],[Ежеквартальная цель по контактам]]>0,tblGoals3[[#This Row],[Фактическое количество контактов за квартал]]/tblGoals3[[#This Row],[Ежеквартальная цель по контактам]],\"\")","v":""}]
[]
["Отражение результатов и примечания для улучшения"]
["Близко. Попробовать позвонить в обеденное время."]

{"sheet":"Сетевой план на 3 кв.","index":6,"n_rows":20,"n_cols":6,"rows_kept":20,"merged":[[0,0,0,3],[2,0,2,3],[4,0,4,3],[14,5,17,5],[18,0,18,3]]}
["План расширения сети"]
["Указания"]
["Напишите, как вы планируете расширить сеть контактов в этом квартале (т. е. сделать больше звонков, больше путешествовать и т. д.). Каждый раз, когда вы получаете новый контакт, изменяйте фактический номер контакта, чтобы отслеживать и видеть, насколько близко вы приближаетесь к своей цели."]
[]
["Как я планирую расширить сеть контактов в этом квартале"]
["1. Дополнительные телефонные звонки"]
["2. Дополнительные путешествия"]
[]
[]
[]
[]
[]
[]
["Ежеквартальная цель по контактам","Крайний срок","Фактическое количество контактов за квартал","Результаты"]
[20,{"$f":"TODAY()","v":"2021-07-16"},12,{"$f":"IF(tblGoals34[[#This Row],[Ежеквартальная цель по контактам]]>0,tblGoals34[[#This Row],[Фактическое количество контактов за квартал]]/tblGoals34[[#This Row],[Ежеквартальная цель по контактам]],\"\")","v":{"v":0.6,"d":"60%"}},null,"0% – 25%\n26% – 50%\n51% – 75%\n76% – 100%\n\nИзменения цвета в зависимости от достигнутого процента"]
[{"$nulls":3},{"$f":"IF(tblGoals34[[#This Row],[Ежеквартальная цель по контактам]]>0,tblGoals34[[#This Row],[Фактическое количество контактов за квартал]]/tblGoals34[[#This Row],[Ежеквартальная цель по контактам]],\"\")","v":""}]
[{"$nulls":3},{"$f":"IF(tblGoals34[[#This Row],[Ежеквартальная цель по контактам]]>0,tblGoals34[[#This Row],[Фактическое количество контактов за квартал]]/tblGoals34[[#This Row],[Ежеквартальная цель по контактам]],\"\")","v":""}]
[]
["Отражение результатов и примечания для улучшения"]
["Близко. Попробовать позвонить в обеденное время."]

{"sheet":"План сети за 4 кв.","index":7,"n_rows":20,"n_cols":6,"rows_kept":20,"merged":[[0,0,0,3],[2,0,2,3],[4,0,4,3],[14,5,17,5],[18,0,18,3]]}
["План расширения сети"]
["Указания"]
["Напишите, как вы планируете расширить сеть контактов в этом квартале (т. е. сделать больше звонков, больше путешествовать и т. д.). Каждый раз, когда вы получаете новый контакт, изменяйте фактический номер контакта, чтобы отслеживать и видеть, насколько близко вы приближаетесь к своей цели."]
[]
["Как я планирую расширить сеть контактов в этом квартале"]
["1. Дополнительные телефонные звонки"]
["2. Дополнительные путешествия"]
[]
[]
[]
[]
[]
[]
["Ежеквартальная цель по контактам","Крайний срок","Фактическое количество контактов за квартал","Результаты"]
[20,{"$f":"TODAY()","v":"2021-07-16"},12,{"$f":"IF(tblGoals348[[#This Row],[Ежеквартальная цель по контактам]]>0,tblGoals348[[#This Row],[Фактическое количество контактов за квартал]]/tblGoals348[[#This Row],[Ежеквартальная цель по контактам]],\"\")","v":{"v":0.6,"d":"60%"}},null,"0% – 25%\n26% – 50%\n51% – 75%\n76% – 100%\n\nИзменения цвета в зависимости от достигнутого процента"]
[{"$nulls":3},{"$f":"IF(tblGoals348[[#This Row],[Ежеквартальная цель по контактам]]>0,tblGoals348[[#This Row],[Фактическое количество контактов за квартал]]/tblGoals348[[#This Row],[Ежеквартальная цель по контактам]],\"\")","v":""}]
[{"$nulls":3},{"$f":"IF(tblGoals348[[#This Row],[Ежеквартальная цель по контактам]]>0,tblGoals348[[#This Row],[Фактическое количество контактов за квартал]]/tblGoals348[[#This Row],[Ежеквартальная цель по контактам]],\"\")","v":""}]
[]
["Отражение результатов и примечания для улучшения"]
["Близко. Попробовать позвонить в обеденное время."]